[Event "WTCC-50 2018"]
[Site "Radebeul"]
[Date "2018.07.09"]
[Round "3"]
[White "Plaskett, H James"]
[Black "Kempter, Ronald"]
[Result "1/2-1/2"]
[ECO "C86"]
[WhiteElo "2455"]
[BlackElo "2233"]
[Annotator "ChessBase"]
[PlyCount "47"]
[EventDate "2018.07.07"]
[EventType "team-tourn"]
[EventCountry "GER"]
[SourceTitle "playchess.com"]
[Source "ChessBase"]
[SourceQuality "1"]
[TimeControl "40/5400+30:1800+30"]

1. e4 {[%emt 0:03:52]} e5 {[%emt 0:00:00]} 2. Nf3 {[%emt 0:00:16]} Nc6 {[%emt 0:00:00]} 3. Bb5 {[%emt 0:00:04]} a6 {[%emt 0:00:04]} 4. Ba4 {[%emt 0:00:04]} Nf6 {[%emt 0:00:17]} 5. O-O {[%emt 0:00:07]} Be7 {[%emt 0:00:21]} 6. Qe2 {[%emt 0:00:13]} b5 {[%emt 0:00:18]} 7. Bb3 {[%emt 0:00:01]} O-O {[%emt 0:00:24]} 8. c3 {[%emt 0:00:16]} d5 {[%emt 0:00:58]} 9. d3 {[%emt 0:00:07]} Bb7 {[%emt 0:00:38]} 10. Nbd2 {[%emt 0:01:07]} Re8 {[%emt 0:04:00]} 11. a3 {[%emt 0:15:12]} h6 {[%emt 0:13:38]} 12. Rd1 {[%emt 0:10:00]} Bf8 {[%emt 0:04:36]} 13. Nf1 {[%emt 0:05:39]} Na5 {[%emt 0:03:26]} 14. Ba2 {[%emt 0:00:12]} c5 {[%emt 0:01:51]} 15. b4 {[%emt 0:05:10]} Nc6 {[%emt 0:03:39]} 16. bxc5 {[%emt 0:05:03]} dxe4 {[%emt 0:15:50]} 17. dxe4 {[%emt 0:00:06]} Qa5 {[%emt 0:01:45]} 18. Qc2 {[%emt 0:30:08]} Bxc5 {[%emt 0:05:12]} 19. Ne3 {[%emt 0:03:21]} Qb6 {[%emt 0:06:04]} 20. Re1 {[%emt 0:02:18]} Na5 {[%emt 0:09:14]} 21. Nf5 {[%emt 0:01:02]} Ng4 {[%emt 0:05:39]} 22. Ne3 {[%emt 0:02:23]} Nf6 {[%emt 0:02:22]} 23. Nf5 {[%emt 0:04:51]} Ng4 {[%emt 0:00:06]} 24. Ne3 1/2-1/2

[Event "WTCC-50 2018"]
[Site "Radebeul"]
[Date "2018.07.09"]
[Round "3"]
[White "Penzold, Andreas"]
[Black "Enders, Peter"]
[Result "1-0"]
[ECO "E69"]
[WhiteElo "2389"]
[BlackElo "2445"]
[Annotator "NA RC"]
[PlyCount "131"]
[EventDate "2018.07.07"]
[EventType "team-tourn"]
[EventCountry "GER"]
[SourceTitle "playchess.com"]
[Source "ChessBase"]
[SourceQuality "1"]
[TimeControl "40/5400+30:1800+30"]

1. c4 {[%emt 0:00:00]} Nf6 {[%emt 0:00:00]} 2. Nc3 {[%emt 0:00:00]} g6 {[%emt 0:00:00]} 3. g3 {[%emt 0:02:15]} Bg7 {[%emt 0:00:00]} 4. d4 {[%emt 0:00:28]} O-O {[%emt 0:00:00]} 5. Bg2 {[%emt 0:00:08]} d6 {[%emt 0:00:00]} 6. Nf3 {[%emt 0:00:11]} Nbd7 {[%emt 0:00:09]} 7. O-O {[%emt 0:00:14]} e5 {[%emt 0:00:14]} 8. e4 {[%emt 0:01:37]} c6 {[%emt 0:00:08]} 9. h3 {[%emt 0:00:28]} Re8 {[%emt 0:00:07]} 10. d5 {[%emt 0:04:47]} cxd5 {[%emt 0:00:07]} 11. cxd5 {[%emt 0:00:07]} Nc5 {[%emt 0:00:16]} 12. Ne1 {[%emt 0:00:16]} a5 {[%emt 0:00:22]} 13. Nd3 {[%emt 0:00:47]} b6 {[%emt 0:01:58]} 14. Re1 {[%emt 0:05:18]} Nfd7 {[%emt 0:02:57]} 15. Be3 {[%emt 0:06:39]} Nxd3 {[%emt 0:00:14]} 16. Qxd3 {[%emt 0:00:07]} Nc5 {[%emt 0:00:06]} 17. Bxc5 {[%emt 0:02:39]} bxc5 {[%emt 0:00:07]} 18. a4 {[%emt 0:16:15]} Rb8 {[%emt 0:00:28]} 19. Nb5 {[%emt 0:00:11]} Rb7 {[%emt 0:00:30]} 20. b3 {[%emt 0:05:15]} f5 {[%emt 0:00:13]} 21. Ra2 {[%emt 0:00:14]} Rf8 {[%emt 0:04:26]} 22. Rc1 {[%emt 0:05:55]} h5 {[%emt 0:05:23]} 23. h4 {[%emt 0:03:43]} Bh6 {[%emt 0:00:52]} 24. Rc3 {[%emt 0:00:22]} g5 {[%emt 0:04:37]} 25. Qe2 {[%emt 0:05:04]} g4 {[%emt 0:00:29]} 26. exf5 {[%emt 0:00:30]} Rxf5 {[%emt 0:04:45]} 27. Be4 {[%emt 0:01:20]} Rf6 {[%emt 0:00:05]} 28. Qe1 {[%emt 0:00:42]} Bd7 {[%emt 0:03:15]} 29. Bd3 {[%emt 0:00:29]} Be8 {[%emt 0:01:40]} 30. Rac2 {[%emt 0:04:28]} Qb8 {[%emt 0:05:33]} 31. Qe2 {[%emt 0:01:35]} Rbf7 {[%emt 0:07:37]} 32. Qe1 {[%emt 0:00:31]} Rf8 {[%emt 0:01:33]} 33. Ra2 {[%emt 0:01:09]} Kg7 {[%emt 0:01:29]} 34. Rc4 {[%emt 0:09:58]} Qb6 {[%emt 0:15:20]} 35. Rc3 {[%emt 0:00:54]} Rf3 {[%emt 0:07:53]} 36. Qe4 {[%emt 0:06:33]} Rxg3+ {[%emt 0:00:37]} 37. fxg3 {[%emt 0:02:06]} c4+ {[%emt 0:00:05]} 38. Kg2 {[%emt 0:00:32]} cxd3 {[%emt 0:00:04]} 39. Rc7+ {[%emt 0:01:03]} Rf7 {[%emt 0:01:01]} 40. Rxf7+ {[%emt 0:01:39]} Bxf7 {[%emt 0:00:06]} 41. Qxd3 {[%emt 0:31:00]} Qc5 {[%emt 0:37:21]} 42. Rc2 {[%emt 0:02:29]} Qxd5+ {[%emt 0:01:50]} 43. Qxd5 {[%emt 0:00:08]} Bxd5+ {[%emt 0:00:06]} 44. Kf2 {[%emt 0:01:55]} Bxb3 {[%emt 0:00:05]} 45. Rc7+ {[%emt 0:00:16]} Kf6 {[%emt 0:05:28]} 46. Nxd6 {[%emt 0:00:21]} Bxa4 {[%emt 0:00:05]} 47. Ra7 {[%emt 0:02:48]} Bf8 {[%emt 0:04:14]} 48. Rf7+ {[%emt 0:00:50]} Ke6 {[%emt 0:00:08]} 49. Rxf8 {[%emt 0:00:05]} Kxd6 {[%emt 0:00:06]} 50. Ra8 {[%emt 0:00:20]} Bb3 {[%emt 0:01:59]} 51. Rxa5 {[%emt 0:00:12]} Bf7 {[%emt 0:00:18]} 52. Ke3 {[%emt 0:00:58]} Be8 {[%emt 0:01:52]} 53. Ra8 {[%emt 0:05:41]} Bf7 {[%emt 0:01:03]} 54. Ra7 {[%emt 0:00:28]} Be8 {[%emt 0:00:37]} 55. Kd3 {[%emt 0:02:26]} Kd5 {[%emt 0:00:11]} 56. Ra5+ {[%emt 0:00:24]} Kd6 {[%emt 0:00:09]} 57. Kc3 {[%emt 0:00:00]} Bf7 {[%emt 0:00:00]} 58. Ra7 {[%emt 0:00:00]} Ke6 {[%emt 0:00:00]} 59. Kc4 {[%emt 0:00:00]} Bg6 {[%emt 0:00:00]} 60. Kc5 {[%emt 0:00:00]} Bd3 {[%emt 0:00:00]} 61. Rg7 {[%emt 0:00:00]} Kf5 {[%emt 0:00:00]} 62. Kd5 {[%emt 0:00:00]} Be4+ {[%emt 0:00:00]} 63. Kd6 {[%emt 0:00:00]} Bg2 {[%emt 0:00:00]} 64. Rg5+ {[%emt 0:00:00]} Ke4 {[%emt 0:00:00]} 65. Rxh5 {[%emt 0:00:00]} Kf3 {[%emt 0:00:00]} 66. Rxe5 {[%emt 0:00:00] Ke4 Kd5+} 1-0

[Event "WTCC-50 2018"]
[Site "Radebeul"]
[Date "2018.07.09"]
[Round "3"]
[White "Casper, Thomas"]
[Black "Vollak, Andreas"]
[Result "1/2-1/2"]
[ECO "C01"]
[WhiteElo "2354"]
[BlackElo "2027"]
[Annotator "NA"]
[PlyCount "32"]
[EventDate "2018.07.07"]
[EventType "team-tourn"]
[EventCountry "GER"]
[SourceTitle "playchess.com"]
[Source "ChessBase"]
[SourceQuality "1"]
[TimeControl "40/5400+30:1800+30"]

1. e4 {[%emt 0:00:00]} e6 {[%emt 0:00:00]} 2. d4 {[%emt 0:00:11]} d5 {[%emt 0:00:00]} 3. exd5 {[%emt 0:00:46]} exd5 {[%emt 0:00:00]} 4. Nf3 {[%emt 0:00:08]} Bd6 {[%emt 0:00:25]} 5. c4 {[%emt 0:00:24]} Nf6 {[%emt 0:00:47]} 6. Nc3 {[%emt 0:00:31]} O-O {[%emt 0:00:59]} 7. cxd5 {[%emt 0:03:49]} Bb4 {[%emt 0:02:09]} 8. Bg5 {[%emt 0:09:35]} Nbd7 {[%emt 0:04:56]} 9. Be2 {[%emt 0:03:00]} Nb6 {[%emt 0:01:18]} 10. O-O {[%emt 0:01:18]} Be7 {[%emt 0:08:08]} 11. Bxf6 {[%emt 0:11:11]} Bxf6 {[%emt 0:00:17]} 12. Qb3 {[%emt 0:00:13]} Bg4 {[%emt 0:04:38]} 13. Rad1 {[%emt 0:01:09]} Re8 {[%emt 0:02:15]} 14. h3 {[%emt 0:12:59]} Bh5 {[%emt 0:02:25]} 15. Rd2 {[%emt 0:15:52]} Qd6 {[%emt 0:05:17]} 16. g3 {[%emt 0:11:36]} a6 $16 {[%emt 0:02:09]} 1/2-1/2

[Event "WTCC-50 2018"]
[Site "Radebeul"]
[Date "2018.07.09"]
[Round "3"]
[White "Paehtz, Thomas"]
[Black "Schoene, Ralf"]
[Result "1/2-1/2"]
[ECO "C50"]
[WhiteElo "2347"]
[BlackElo "2256"]
[Annotator "NA"]
[PlyCount "35"]
[EventDate "2018.07.07"]
[EventType "team-tourn"]
[EventCountry "GER"]
[SourceTitle "playchess.com"]
[Source "ChessBase"]
[SourceQuality "1"]
[TimeControl "40/5400+30:1800+30"]

1. e4 {[%emt 0:00:00]} e5 {[%emt 0:00:00]} 2. Bc4 {[%emt 0:00:00]} Nc6 {[%emt 0:00:20]} 3. Nf3 {[%emt 0:00:13]} Bc5 {[%emt 0:00:14]} 4. d3 {[%emt 0:00:25]} Nf6 {[%emt 0:00:21]} 5. c3 {[%emt 0:02:15]} a6 {[%emt 0:00:19]} 6. Bb3 {[%emt 0:01:37]} Ba7 {[%emt 0:00:27]} 7. h3 {[%emt 0:04:44] C54: Italienische Partie (Hauptvariante)} (7. Nbd2 O-O 8. h3 Re8 9. O-O d6 10. Re1 Be6 11. Bc2 h6 12. Nf1 d5 13. Ng3 dxe4 14. dxe4 Qxd1 15. Rxd1 Rad8 16. Re1 Nd7 17. Nf5 Bc5 18. Be3 Bxe3 19. Nxe3 Nb6 {½-½ (32) Miton,K (2584)-Ivanchuk,V (2726) Riadh 2017}) 7... h6 {[%emt 0:00:53]} 8. Nbd2 {[%emt 0:00:43]} d6 {[%emt 0:02:02]} 9. Nf1 {[%emt 0:01:05]} d5 {[%emt 0:02:50] LiveBook: 20 Games} 10. Qe2 {[%emt 0:06:05]} dxe4 {[%emt 0:08:43]} 11. dxe4 {[%emt 0:00:03]} O-O {[%emt 0:04:41]} 12. Ng3 {[%emt 0:09:13]} Nd7 {[%emt 0:07:47]} 13. O-O {[%emt 0:15:55]} Nc5 {[%emt 0:04:17]} 14. Bc2 {[%emt 0:02:56]} ({Vorgänger:} 14. Bd5 Qe7 {½-½ (48) Xu,Y (2477)-Bensdorp,M (2303) Beijing 2008}) 14... Qf6 {[%emt 0:05:37]} 15. Nh5 {[%emt 0:08:01]} (15. Rd1 $14) 15... Qe7 {[%emt 0:02:17]} 16. Ng3 {[%emt 0:00:16]} Qf6 {[%emt 0:00:26]} 17. Nh5 $11 {[%emt 0:00:21]} Qe7 {[%emt 0:00:11]} 18. Ng3 {[%emt 0:00:26]} 1/2-1/2

[Event "WTCC-50 2018"]
[Site "Radebeul"]
[Date "2018.07.09"]
[Round "3"]
[White "Wolf, Volker"]
[Black "Schulenburg, Bernd"]
[Result "1/2-1/2"]
[ECO "C25"]
[WhiteElo "2323"]
[BlackElo "2152"]
[Annotator "NA"]
[PlyCount "136"]
[EventDate "2018.07.07"]
[EventType "team-tourn"]
[EventCountry "GER"]
[SourceTitle "playchess.com"]
[Source "ChessBase"]
[SourceQuality "1"]
[TimeControl "40/5400+30:1800+30"]

1. e4 {[%emt 0:00:00]} e5 {[%emt 0:00:00]} 2. Nc3 {[%emt 0:00:16]} Bc5 {[%emt 0:02:25]} 3. Nf3 {[%emt 0:00:52]} d6 {[%emt 0:02:11]} 4. g3 {[%emt 0:01:28]} Nc6 {[%emt 0:03:43]} 5. Bg2 {[%emt 0:00:19]} Nf6 {[%emt 0:01:33]} 6. d3 {[%emt 0:00:29]} h6 {[%emt 0:00:28]} 7. Na4 {[%emt 0:02:52]} Bg4 {[%emt 0:03:13] C26: Wiener Partie} (7... Bb6 8. Nxb6 axb6 9. O-O O-O 10. h3 Re8 11. Re1 d5 12. exd5 Nxd5 13. d4 e4 14. Ne5 Nf6 15. Nxc6 bxc6 16. c4 Bf5 17. b3 Qd7 {1-0 (59) Harikrishna,P (2682)-Erenburg,S (2585) Mainz 2006}) 8. c3 {[%emt 0:01:28]} Qd7 {[%emt 0:02:25]} 9. h3 {[%emt 0:08:32]} Be6 {[%emt 0:17:42]} 10. g4 $146 {[%emt 0:19:53]} ({Vorgänger:} 10. b4 Bb6 11. b5 Ne7 12. c4 Ba5+ 13. Bd2 Bxd2+ 14. Nxd2 a6 15. bxa6 Rxa6 {0-1 (35) Seeger,H (1877)-Kripp,W (2155) Bad Wildbad 1998}) 10... a5 {[%emt 0:14:21]} 11. Nxc5 {[%emt 0:03:34]} dxc5 {[%emt 0:00:08]} 12. Be3 {[%emt 0:00:10]} O-O-O {[%emt 0:01:25]} 13. Bxc5 {[%emt 0:01:41]} Qxd3 {[%emt 0:00:10]} 14. Qxd3 {[%emt 0:00:09]} Rxd3 {[%emt 0:00:04]} 15. Nd2 {[%emt 0:01:12]} b6 {[%emt 0:06:49]} 16. Be3 {[%emt 0:00:05]} Rhd8 {[%emt 0:00:04]} 17. Bf1 {[%emt 0:01:15]} R3d6 {[%emt 0:00:10]} 18. Ba6+ {[%emt 0:02:26]} Kd7 {[%emt 0:01:54]} 19. f3 {[%emt 0:02:07]} Nh7 {[%emt 0:13:57]} 20. Nc4 {[%emt 0:02:26]} Bxc4 $1 {[%emt 0:00:18]} 21. Bxc4 {[%emt 0:00:03]} Ng5 {[%emt 0:02:18]} 22. Ke2 {[%emt 0:03:49]} Ke7 {[%emt 0:04:08]} 23. a3 {[%emt 0:10:12]} Ne6 {[%emt 0:02:06]} 24. Bd5 {[%emt 0:03:25]} Nf4+ {[%emt 0:01:08]} 25. Bxf4 {[%emt 0:00:14]} exf4 {[%emt 0:00:04]} 26. Bxc6 {[%emt 0:00:07]} Rxc6 {[%emt 0:00:04]} 27. Rhd1 {[%emt 0:00:42]} Rcd6 {[%emt 0:01:07]} 28. Rxd6 {[%emt 0:00:19]} Rxd6 {[%emt 0:00:06]} 29. b4 {[%emt 0:01:58]} axb4 {[%emt 0:04:57]} 30. axb4 {[%emt 0:00:35]} b5 {[%emt 0:00:08]} 31. Ra8 {[%emt 0:04:33]} g5 {[%emt 0:02:37]} 32. Ra5 {[%emt 0:03:29]} c6 {[%emt 0:00:53]} 33. Ra7+ {[%emt 0:01:46]} Kf6 {[%emt 0:02:43]} 34. Ra8 {[%emt 0:10:35]} Ke7 {[%emt 0:00:58]} 35. Ra7+ {[%emt 0:01:39]} Ke6 {[%emt 0:01:36]} 36. Ra5 {[%emt 0:01:09]} Kd7 {[%emt 0:05:18]} 37. Ra1 {[%emt 0:01:18]} Ke7 {[%emt 0:00:38]} 38. h4 {[%emt 0:02:12]} Rd8 {[%emt 0:01:34]} 39. hxg5 {[%emt 0:03:50]} hxg5 {[%emt 0:00:07]} 40. Ra7+ {[%emt 0:00:15]} Ke6 {[%emt 0:03:41]} 41. Rc7 {[%emt 0:33:23]} Rd6 {[%emt 0:30:12]} 42. Rc8 {[%emt 0:00:00]} Ke7 {[%emt 0:00:00]} 43. Rg8 {[%emt 0:00:00]} f6 {[%emt 0:00:00]} 44. Rg7+ {[%emt 0:00:00]} Kf8 {[%emt 0:00:00]} 45. Rc7 {[%emt 0:00:00]} Ke8 {[%emt 0:00:00]} 46. Rb7 {[%emt 0:00:00]} Kd8 {[%emt 0:00:00]} 47. Ra7 {[%emt 0:00:00]} Ke8 {[%emt 0:00:00]} 48. Rh7 {[%emt 0:00:00]} Kf8 {[%emt 0:00:00]} 49. Rh8+ {[%emt 0:00:00]} Ke7 {[%emt 0:00:00]} 50. Rh7+ {[%emt 0:00:00]} Kf8 {[%emt 0:00:00]} 51. Rh1 {[%emt 0:00:00]} Rd7 {[%emt 0:00:00]} 52. Rh8+ {[%emt 0:00:00]} Kg7 {[%emt 0:00:00]} 53. Rc8 {[%emt 0:00:00]} Rd6 {[%emt 0:00:00]} 54. Rc7+ {[%emt 0:00:44]} Kg8 {[%emt 0:01:47]} 55. Ra7 {[%emt 0:04:51]} Rd8 {[%emt 0:00:32]} 56. Ra6 {[%emt 0:00:54]} Rc8 {[%emt 0:01:42]} 57. Kd3 {[%emt 0:00:18]} Rd8+ {[%emt 0:00:16]} 58. Kc2 {[%emt 0:00:15]} Rc8 {[%emt 0:00:35]} 59. Kb3 {[%emt 0:01:07]} Kf7 {[%emt 0:00:03]} 60. c4 {[%emt 0:00:43]} Rd8 {[%emt 0:00:32]} 61. Kc3 {[%emt 0:00:46]} bxc4 {[%emt 0:00:09]} 62. Kxc4 {[%emt 0:00:09]} Rd1 {[%emt 0:00:09]} 63. Ra3 {[%emt 0:03:35]} Ke6 {[%emt 0:00:01]} 64. Rc3 {[%emt 0:00:45]} Re1 {[%emt 0:00:08]} 65. Rd3 {[%emt 0:00:19]} Rc1+ {[%emt 0:00:37]} 66. Rc3 {[%emt 0:00:20]} Re1 {[%emt 0:00:46]} 67. Rd3 {[%emt 0:00:20]} Ke5 {[%emt 0:00:58]} 68. Rc3 $11 {[%emt 0:00:25]} Rd1 {[%emt 0:01:22]} 1/2-1/2

[Event "WTCC-50 2018"]
[Site "Radebeul"]
[Date "2018.07.09"]
[Round "3"]
[White "Titscher, Libor"]
[Black "Schulz, Klaus-Juergen"]
[Result "1/2-1/2"]
[ECO "A37"]
[WhiteElo "2306"]
[BlackElo "2324"]
[Annotator "NA"]
[PlyCount "104"]
[EventDate "2018.07.07"]
[EventType "team-tourn"]
[EventCountry "GER"]
[SourceTitle "playchess.com"]
[Source "ChessBase"]
[SourceQuality "1"]
[TimeControl "40/5400+30:1800+30"]

1. c4 {[%emt 0:00:00]} c5 {[%emt 0:00:00]} 2. Nc3 {[%emt 0:00:00]} Nc6 {[%emt 0:00:00]} 3. g3 {[%emt 0:00:00]} g6 {[%emt 0:00:50]} 4. Bg2 {[%emt 0:00:03]} Bg7 {[%emt 0:00:06]} 5. Nf3 {[%emt 0:03:38]} d6 {[%emt 0:00:13]} 6. O-O {[%emt 0:00:50]} Bf5 {[%emt 0:00:35]} 7. h3 {[%emt 0:01:10] A37: Symmetrical English vs ...g6: 4 Bg2 Bg7 5 Nf3} Qc8 {[%emt 0:19:36]} 8. Kh2 {[%emt 0:02:11]} h6 $146 {[%emt 0:13:02]} ({Predecessor:} 8... Nf6 9. d3 O-O 10. e4 Bd7 11. Be3 a6 12. Rc1 Rb8 13. Nd5 Qd8 14. b3 e6 {0-1 (31) Svidler,P (2765)-Dubov,D (2683) St Petersburg 2017}) 9. d3 {[%emt 0:06:17]} Nf6 {[%emt 0:06:37]} 10. e4 {[%emt 0:02:46]} Bd7 {[%emt 0:02:02]} 11. Ne1 {[%emt 0:14:59]} Nd4 {[%emt 0:09:04]} 12. f4 {[%emt 0:04:24]} Bc6 {[%emt 0:05:59]} 13. Nf3 {[%emt 0:09:22]} Nd7 {[%emt 0:00:29]} 14. Be3 {[%emt 0:04:21]} a6 {[%emt 0:06:37]} 15. Qd2 {[%emt 0:03:32]} b5 {[%emt 0:04:16]} 16. Rae1 {[%emt 0:07:58]} Qb7 {[%emt 0:01:33]} 17. b3 {[%emt 0:07:36]} b4 {[%emt 0:06:12]} 18. Ne2 {[%emt 0:12:06]} e5 {[%emt 0:02:13]} 19. Nh4 {[%emt 0:06:22]} a5 {[%emt 0:01:04]} 20. f5 {[%emt 0:00:33]} g5 {[%emt 0:01:31]} 21. f6 {[%emt 0:00:45]} Bxf6 {[%emt 0:05:38]} 22. Nf5 {[%emt 0:00:06]} Nxf5 {[%emt 0:00:33]} 23. Rxf5 {[%emt 0:00:10]} Be7 {[%emt 0:02:04]} 24. Ref1 {[%emt 0:00:46]} f6 {[%emt 0:00:50]} 25. h4 {[%emt 0:02:27]} O-O-O {[%emt 0:03:17]} 26. a4 {[%emt 0:01:15]} Nf8 {[%emt 0:04:58]} 27. h5 {[%emt 0:03:46]} Bd7 {[%emt 0:00:06]} 28. g4 {[%emt 0:00:34]} Ne6 {[%emt 0:00:10]} 29. Ng3 {[%emt 0:00:33]} Nf4 {[%emt 0:00:06]} 30. Bf3 {[%emt 0:00:24]} Be6 {[%emt 0:00:34]} 31. Qc2 {[%emt 0:01:21]} Kc7 {[%emt 0:00:10]} 32. Rd1 {[%emt 0:00:36]} Kb8 {[%emt 0:00:17]} 33. Bf2 {[%emt 0:02:20]} Qc8 {[%emt 0:00:09]} 34. Be3 {[%emt 0:00:31]} Bd7 {[%emt 0:00:17]} 35. Qd2 {[%emt 0:01:08]} Ne6 {[%emt 0:00:21]} 36. Rc1 {[%emt 0:00:24]} Ng7 {[%emt 0:00:08]} 37. Be2 {[%emt 0:00:49]} Rdg8 {[%emt 0:00:30]} 38. Rcf1 {[%emt 0:00:37]} Kc7 {[%emt 0:01:32]} 39. Qd1 {[%emt 0:00:29]} Ne6 {[%emt 0:02:10]} 40. Qd2 {[%emt 0:01:18]} Nd4 {[%emt 0:01:25]} 41. Bd1 {[%emt 0:04:23]} (41. Bxd4 $17 cxd4 42. R5f2) 41... Nxf5 {[%emt 0:03:26]} 42. Nxf5 {[%emt 0:01:16]} Bf8 {[%emt 0:02:51]} 43. Qg2 {[%emt 0:01:17]} Rh7 {[%emt 0:01:20]} 44. Qc2 {[%emt 0:02:34]} Rf7 {[%emt 0:00:09]} 45. Qg2 {[%emt 0:00:19]} Rh8 {[%emt 0:00:05]} 46. Qc2 {[%emt 0:00:47]} Rhh7 {[%emt 0:00:06]} 47. Qa2 {[%emt 0:05:25]} Be6 {[%emt 0:00:12]} 48. Kg3 {[%emt 0:05:51]} Kb8 {[%emt 0:00:18]} 49. Qc2 {[%emt 0:00:57]} Rb7 {[%emt 0:00:16]} 50. Qa2 {[%emt 0:00:31]} Qe8 {[%emt 0:00:55]} 51. Bf3 {[%emt 0:01:08]} Bxf5 {[%emt 0:08:20]} 52. exf5 $17 {[%emt 0:01:15]} Rbc7 1/2-1/2

[Event "WTCC-50 2018"]
[Site "Radebeul"]
[Date "2018.07.09"]
[Round "3"]
[White "Fritsche, Lutz"]
[Black "Schweitzer, Andreas"]
[Result "1/2-1/2"]
[ECO "B23"]
[WhiteElo "2303"]
[BlackElo "2239"]
[Annotator "NA"]
[PlyCount "117"]
[EventDate "2018.07.07"]
[EventType "team-tourn"]
[EventCountry "GER"]
[SourceTitle "playchess.com"]
[Source "ChessBase"]
[SourceQuality "1"]
[TimeControl "40/5400+30:1800+30"]

1. e4 {[%emt 0:00:00]} c5 {[%emt 0:00:00]} 2. Nc3 {[%emt 0:00:24]} Nc6 {[%emt 0:00:00]} 3. f4 {[%emt 0:04:02]} g6 {[%emt 0:02:00]} 4. Nf3 {[%emt 0:01:03]} Bg7 {[%emt 0:00:17]} 5. Bc4 {[%emt 0:07:33]} e6 {[%emt 0:00:52]} 6. O-O {[%emt 0:00:10]} Nge7 {[%emt 0:00:37]} 7. d3 {[%emt 0:00:27]} d5 {[%emt 0:03:40]} 8. Bb3 {[%emt 0:01:59]} O-O {[%emt 0:02:37]} 9. Qe1 {[%emt 0:00:41] LiveBook: 133 Games} Nd4 {[%emt 0:06:08]} 10. Nxd4 {[%emt 0:05:51]} cxd4 {[%emt 0:02:13]} 11. Ne2 {[%emt 0:01:28]} b5 {[%emt 0:15:54] B23: Closed Sicilian: Lines without g3} (11... dxe4 12. dxe4 b6 13. Bc4 Bb7 14. Bd3 f5 15. Ng3 Qd7 16. Bd2 Kh8 17. Qe2 Rac8 18. h3 Rfe8 19. e5 Rcd8 20. Qf2 Nc6 {½-½ (84) Saric,I (2441)-Leskur,D (2476) Sibenik 2005}) 12. Qf2 {[%emt 0:16:54]} dxe4 {[%emt 0:09:35]} 13. dxe4 {[%emt 0:01:17]} Qb6 {[%emt 0:08:33]} 14. Bd2 $146 {[%emt 0:12:04]} ({Predecessor:} 14. e5 Rd8 15. Rd1 Nc6 16. c3 dxc3 17. Be3 Qb7 18. Nxc3 Bd7 19. Ne4 Ne7 20. Nc5 Qc7 {½-½ (32) Cordeiro,M (2203)-Quintiliano Pinto,R (2260) Curitiba 2013}) 14... Bb7 {[%emt 0:21:07]} 15. Ng3 {[%emt 0:01:29]} Bh6 {[%emt 0:09:18]} 16. Rad1 {[%emt 0:00:46]} b4 {[%emt 0:02:09]} 17. c3 {[%emt 0:14:28]} bxc3 {[%emt 0:01:04]} 18. bxc3 {[%emt 0:00:47]} dxc3 {[%emt 0:00:07]} 19. Bxc3 {[%emt 0:06:00]} Qxf2+ {[%emt 0:00:33]} 20. Rxf2 {[%emt 0:01:27]} Rfd8 {[%emt 0:00:30]} 21. Rfd2 {[%emt 0:06:22]} Rxd2 {[%emt 0:00:11]} 22. Rxd2 {[%emt 0:02:41]} Bc6 {[%emt 0:02:51]} 23. Be5 {[%emt 0:04:38]} Bg7 {[%emt 0:04:07]} 24. Bxg7 {[%emt 0:01:16]} Kxg7 {[%emt 0:00:02]} 25. Kf2 {[%emt 0:00:11]} Kf8 {[%emt 0:01:40]} 26. Ke3 {[%emt 0:00:18]} Ke8 {[%emt 0:00:38]} 27. Ne2 {[%emt 0:00:22]} Rc8 {[%emt 0:00:35]} 28. Nd4 {[%emt 0:00:15]} Bd7 {[%emt 0:00:26]} 29. h4 {[%emt 0:02:30]} h5 {[%emt 0:00:07]} 30. Nf3 {[%emt 0:02:41]} Bb5 {[%emt 0:01:45]} 31. Ne5 {[%emt 0:01:05]} Rc1 {[%emt 0:01:13]} 32. Rc2 {[%emt 0:02:19]} Rxc2 {[%emt 0:00:22]} 33. Bxc2 {[%emt 0:00:01]} Nc6 {[%emt 0:01:25]} 34. Nxc6 {[%emt 0:00:32]} Bxc6 {[%emt 0:00:01]} 35. Kd4 {[%emt 0:00:14]} Kd7 {[%emt 0:01:01]} 36. Kc5 {[%emt 0:01:01]} Kc7 {[%emt 0:02:18]} 37. g3 {[%emt 0:00:56]} Bd7 {[%emt 0:01:59]} 38. Bd3 {[%emt 0:00:34]} Bc6 {[%emt 0:00:08]} 39. f5 {[%emt 0:00:59]} e5 {[%emt 0:00:48]} 40. f6 {[%emt 0:01:12]} Bb7 {[%emt 0:00:34]} 41. Bb5 {[%emt 0:30:48]} Bxe4 {[%emt 0:09:20]} 42. Be8 {[%emt 0:00:00]} Bf5 {[%emt 0:03:14]} 43. Bxf7 {[%emt 0:00:00]} Kd7 {[%emt 0:02:30]} 44. a4 {[%emt 0:00:00]} e4 {[%emt 0:03:03]} 45. Bc4 {[%emt 0:00:00]} e3 {[%emt 0:02:18]} 46. Kd4 {[%emt 0:00:00]} e2 {[%emt 0:00:22]} 47. Bxe2 {[%emt 0:00:00]} Ke6 {[%emt 0:00:05]} 48. a5 {[%emt 0:00:00]} Kxf6 {[%emt 0:01:02]} 49. Kd5 {[%emt 0:00:00]} Ke7 {[%emt 0:07:21]} 50. Bf3 {[%emt 0:00:00]} Bd7 {[%emt 0:01:11]} 51. Ke5 {[%emt 0:00:00]} Bb5 {[%emt 0:00:46]} 52. Be4 {[%emt 0:00:00]} Be8 {[%emt 0:00:53]} 53. Bd3 {[%emt 0:00:00]} Bf7 {[%emt 0:00:15]} 54. Bb5 $2 {[%emt 0:00:00]} (54. Bc2 Be8 55. Kd5) 54... Bb3 {[%emt 0:00:35]} 55. Bc6 {[%emt 0:00:00]} Bf7 {[%emt 0:00:34]} 56. Bd5 {[%emt 0:03:58]} Be8 {[%emt 0:00:05]} 57. Be6 {[%emt 0:00:27]} Bc6 {[%emt 0:00:20]} 58. g4 {[%emt 0:00:28]} hxg4 {[%emt 0:00:24]} 59. Bxg4 $11 1/2-1/2

[Event "WTCC-50 2018"]
[Site "Radebeul"]
[Date "2018.07.09"]
[Round "3"]
[White "Kryukova, Irina"]
[Black "Crichton, Martin"]
[Result "1/2-1/2"]
[ECO "B18"]
[WhiteElo "2249"]
[BlackElo "1925"]
[Annotator "NA"]
[PlyCount "40"]
[EventDate "2018.07.07"]
[EventType "team-tourn"]
[EventCountry "GER"]
[SourceTitle "playchess.com"]
[Source "ChessBase"]
[SourceQuality "1"]
[TimeControl "40/5400+30:1800+30"]

1. e4 {[%emt 0:00:00]} c6 {[%emt 0:00:00]} 2. d4 {[%emt 0:00:00]} d5 {[%emt 0:00:00]} 3. Nc3 {[%emt 0:00:14]} dxe4 {[%emt 0:00:19]} 4. Nxe4 {[%emt 0:00:07]} Bf5 {[%emt 0:00:14]} 5. Ng3 {[%emt 0:01:15]} Bg6 {[%emt 0:00:33]} 6. Nh3 {[%emt 0:00:32]} Nf6 {[%emt 0:01:30]} 7. Nf4 {[%emt 0:00:52]} e5 {[%emt 0:02:11]} 8. Nxg6 {[%emt 0:03:21]} hxg6 {[%emt 0:00:30]} 9. dxe5 {[%emt 0:00:33] LiveBook: 125 Games} Qxd1+ {[%emt 0:04:22] B18: Classical Caro-Kann: 4...Bf5 sidelines} (9... Qa5+ 10. Bd2 Qxe5+ 11. Qe2 Nbd7 12. Qxe5+ Nxe5 13. f4 Ned7 14. O-O-O Bc5 15. Re1+ Kf8 16. Bd3 Re8 17. Rxe8+ Kxe8 18. h3 Bf2 19. Ne4 Nxe4 20. Bxe4 {½-½ (33) Mista,A (2588)-Miton,K (2612) Germany 2017}) 10. Kxd1 {[%emt 0:00:08]} Ng4 {[%emt 0:00:07]} 11. Ne4 {[%emt 0:01:07]} Nxe5 {[%emt 0:00:33]} 12. Bf4 {[%emt 0:11:14]} Nbd7 {[%emt 0:06:05]} 13. c3 {[%emt 0:12:44]} Nf6 {[%emt 0:28:24]} 14. Nxf6+ {[%emt 0:17:34]} gxf6 {[%emt 0:00:25]} 15. Kc2 {[%emt 0:01:09]} O-O-O {[%emt 0:00:34]} 16. Be2 {[%emt 0:01:25]} Bh6 $146 {[%emt 0:01:21]} ({Predecessor:} 16... Bc5 17. Bg3 Rhe8 18. Rhe1 f5 19. Bh4 Be7 20. Bg3 Bc5 21. Bh4 Be7 22. Bg3 Bc5 {½-½ (22) Marek,M (2326)-Szotkowski,J (2270) Kouty nad Desnou 2015}) 17. Bxh6 {[%emt 0:01:59]} Rxh6 {[%emt 0:00:07]} 18. f4 {[%emt 0:01:48]} Nd7 {[%emt 0:00:51]} 19. Bc4 $11 {[%emt 0:02:32]} Rh7 {[%emt 0:00:46]} 20. Rae1 {[%emt 0:07:34]} Nb6 {[%emt 0:01:32]} 1/2-1/2